bitfinex-derivatives/quotes_BNBF0:USTF0_20250303
["timestamp","ask_amount","ask_price","bid_price","bid_amount"]
[1740978350480,0.963,612.85,612.09,1.21081704]
[1740978350680,0.608,612.84,612.1,0.26338364]
[1740978351180,1.108,612.83,612.1,0.26338364]
[1740978352080,1.993,612.83,612.1,0.26338364]
[1740978352483,1.993,612.83,612.1,1.47420068]
[1740978352780,1.993,612.83,612.11,0.26338364]
[1740978355376,1.993,612.83,611.95,0.32682408]
[1740978355377,1.993,612.83,612.09,1.21081704]
[1740978355575,1.993,612.83,612.1,0.26328048]
[1740978355778,3.326,612.83,612.1,0.26328048]
[1740978357981,3.326,612.83,612.1,1.47409752]
[1740978358182,3.326,612.83,612.11,0.26334458]
[1740978360483,3.326,612.83,612.12,0.26334458]
[1740978360780,3.326,612.83,612.08,1.21081704]
[1740978361083,3.326,612.83,612.09,0.26334025]
[1740978362176,3.326,612.83,612.08,1.21081704]
[1740978362479,3.326,612.83,612.09,0.26338688]
[1740978363282,3.326,612.83,612.08,1.21081704]
[1740978363483,3.326,612.83,612.09,0.26343662]
[1740978366184,3.326,612.83,612.08,1.21081704]
[1740978367086,4.548,612.83,612.08,1.21081704]
[1740978367681,4.548,612.83,612.11,1.21081704]
[1740978369082,5.613,612.83,612.11,1.21081704]
[1740978370692,5.613,612.83,612.1,1.21081704]
[1740978370885,6.221,612.83,612.1,1.21081704]
[1740978372693,6.221,612.83,611.96,1.21081704]
[1740978374691,6.221,612.83,611.97,0.26327302]
[1740978376089,6.221,612.83,612.09,1.21081704]
[1740978378988,6.221,612.83,612.1,0.26324744]
[1740978379296,6.221,612.83,612.11,1.21081704]
[1740978379494,6.221,612.83,612.12,0.26324744]
[1740978380898,6.221,612.83,612.11,1.21081704]
[1740978381204,6.221,612.83,612.12,0.26324994]
[1740978381497,6.221,612.83,612.23,1.21081704]
[1740978383899,6.221,612.83,612.19,1.21081704]
[1740978386298,6.221,612.83,612.22,1.21081704]
[1740978389002,6.221,612.83,611.95,0.32682408]
[1740978389003,6.221,612.83,612.09,1.21081704]
[1740978390793,7.417,612.83,612.09,1.21081704]
[1740978391703,7.417,612.83,612.01,1.21081704]
[1740978393398,7.417,612.83,612.02,0.26351086]
[1740978394004,7.417,612.83,612.07,1.21081704]
[1740978396404,7.417,612.83,612.06,1.21081704]
[1740978398709,7.417,612.83,612.07,1.21081704]
[1740978401406,7.417,612.83,612.08,1.21081704]
[1740978404011,7.417,612.83,612.06,1.21081704]
[1740978406715,7.417,612.83,612.05,1.21081704]
[1740978409416,7.417,612.83,611.95,0.32682408]
[1740978409417,7.417,612.83,612.03,1.21081704]
[1740978412321,7.417,612.83,612.05,1.21081704]
[1740978415023,7.417,612.83,612.07,1.21081704]
[1740978419725,7.417,612.83,611.44,2.47130005]
[1740978419726,7.417,612.83,612.08,1.21081704]
[1740978420424,7.417,612.83,612.09,0.26352535]
[1740978420722,7.417,612.83,612.08,1.21081704]
[1740978421126,7.417,612.83,612.09,0.26352765]
[1740978422029,7.417,612.83,612.18,1.21081704]
[1740978424133,7.417,612.83,612.2,1.21081704]
[1740978428928,7.417,612.83,612.22,1.21081704]
[1740978431632,7.417,612.83,612.21,1.21081704]
[1740978434239,7.417,612.83,612.12,1.21081704]
[1740978436739,7.417,612.83,612.09,1.21081704]
[1740978439137,7.417,612.83,612.07,1.21081704]
[1740978442246,7.417,612.83,612.06,1.21081704]
[1740978444555,7.417,612.83,612.15,1.21081704]
[1740978448053,7.417,612.83,612.25,1.21081704]
[1740978450755,7.417,612.83,611.71,2.47130005]
[1740978450756,7.417,612.83,612.24,1.21081704]
[1740978452954,7.417,612.83,611.78,1.45251921]
[1740978452955,7.417,612.83,612.19,1.21081704]
[1740978455058,7.417,612.83,612.17,1.21081704]
[1740978459355,7.417,612.83,612.18,0.26370946]
[1740978459758,7.417,612.83,612.16,1.21081704]
[1740978459954,7.417,612.83,612.17,0.26371806]
[1740978461261,7.417,612.83,612.24,1.21081704]
[1740978463162,7.417,612.83,612.23,1.21081704]
[1740978465357,7.417,612.83,612.15,1.21081704]
[1740978468360,7.417,612.83,612.11,1.21081704]
[1740978470967,7.417,612.83,611.99,1.21081704]
[1740978473463,7.417,612.83,611.83,1.21081704]
[1740978476568,7.417,612.83,611.76,1.21081704]
[1740978476868,7.417,612.83,611.77,0.26412924]
[1740978478764,7.417,612.83,611.72,1.21081704]
[1740978478765,7.417,612.83,611.73,0.26412924]
[1740978478962,7.417,612.83,611.74,0.26412924]
[1740978479166,7.417,612.83,611.75,0.26412924]
[1740978479468,7.417,612.83,611.76,0.26412924]
[1740978479668,7.417,612.83,611.77,0.26412924]
[1740978479868,7.417,612.83,611.78,0.26412924]
[1740978480169,7.417,612.83,611.79,0.26412924]
[1740978480365,7.417,612.83,611.72,1.21081704]
[1740978480366,7.417,612.83,611.73,0.26412924]
[1740978480563,7.417,612.83,611.74,0.26412924]
[1740978480762,7.417,612.83,611.72,1.21081704]
[1740978480964,0.30015727,612.82,611.73,0.2640865]
[1740978481369,0.30015727,612.82,611.72,0.2640865]
[1740978481569,0.30015727,612.82,611.73,0.2640865]
[1740978481765,0.30015727,612.82,611.72,0.2640865]
[1740978481969,0.30015727,612.82,611.71,1.21081704]
[1740978481970,0.30015727,612.82,611.73,0.2640865]
[1740978482165,0.32635478,612.83,611.71,1.21081704]
[1740978482369,0.3001696,612.82,611.72,0.26414428]
[1740978482574,1.4041696,612.82,611.72,0.26414428]
[1740978482768,0.3001696,612.81,611.72,0.26414428]
[1740978484374,1.145,612.8,611.72,0.26414428]
[1740978484572,0.3001696,612.79,611.73,0.26414428]
[1740978484873,6.474,612.8,611.74,0.26414428]
[1740978485073,6.474,612.8,611.75,0.26414428]
[1740978485276,6.474,612.8,611.76,0.26414428]
[1740978485576,0.30014792,612.79,611.77,0.26411253]
[1740978485775,6.474,612.8,611.72,0.26411253]
[1740978485975,0.30014848,612.79,611.73,0.26411253]
[1740978486277,6.474,612.8,611.74,0.26411253]
[1740978486577,0.30015345,612.79,611.75,0.26411253]
[1740978486776,0.30015345,612.79,611.72,0.26411253]
[1740978487075,0.30015345,612.79,611.73,0.26411253]
[1740978487274,0.30015345,612.79,611.71,1.21081704]
[1740978487275,0.30015345,612.79,611.74,0.26411253]
[1740978487473,0.30015345,612.79,611.72,0.26411253]
[1740978487676,0.30015345,612.79,611.74,1.21081704]
[1740978487877,0.30015345,612.79,611.75,0.26411253]
[1740978488077,6.474,612.8,611.74,1.21081704]
[1740978489081,6.474,612.8,611.75,0.26396722]
[1740978490082,6.474,612.8,611.63,1.21081704]
[1740978490083,6.474,612.8,611.64,0.26396722]
[1740978490277,6.474,612.8,611.65,0.32698438]
[1740978490482,6.474,612.8,611.66,0.26396722]
[1740978490777,6.474,612.8,611.67,0.32697369]
[1740978490978,6.474,612.8,611.68,0.26396722]
[1740978491178,6.474,612.8,611.69,0.326963]
[1740978491383,6.474,612.8,611.7,0.26396722]
[1740978491684,6.474,612.8,611.73,1.21081704]
[1740978491883,6.474,612.8,611.74,0.26396722]
[1740978492184,6.474,612.8,611.75,0.32693093]
[1740978492383,6.474,612.8,611.76,0.26396722]
[1740978492784,6.474,612.8,611.76,0.59089281]
[1740978492982,6.474,612.8,611.77,0.59088746]
[1740978493179,6.474,612.8,611.78,0.59088212]
[1740978493387,6.474,612.8,611.79,0.59087678]
[1740978493582,6.474,612.8,611.8,0.59087143]
[1740978493882,6.474,612.8,611.81,0.59086609]
[1740978494083,6.474,612.8,611.82,0.26396722]
[1740978495484,5.086,612.8,611.82,0.26396722]
[1740978496483,4.478,612.8,612.0,1.21081704]
[1740978496785,4.478,612.8,612.01,0.26396722]
[1740978498281,4.478,612.8,612.0,1.21081704]
[1740978498481,4.478,612.8,612.01,0.2640092]
[1740978498786,1.079,612.79,612.01,0.2640092]
[1740978499686,0.608,612.78,612.01,0.2640092]
[1740978500481,0.608,612.78,612.03,1.21081704]
[1740978500681,0.608,612.78,612.04,0.2640131]
[1740978501282,0.608,612.78,612.03,1.21081704]
[1740978502289,0.608,612.78,612.05,1.21081704]
[1740978503590,1.194,612.77,612.05,1.21081704]
[1740978504689,1.194,612.77,612.06,1.21081704]
[1740978506893,1.194,612.77,612.08,1.21081704]
[1740978509095,1.194,612.77,612.07,1.21081704]
[1740978509794,1.259,612.76,612.07,1.21081704]
[1740978512398,1.259,612.76,612.06,1.21081704]
[1740978513899,0.988,612.75,612.06,1.21081704]
[1740978515398,0.988,612.75,611.98,1.21081704]
[1740978515599,2.345,612.74,611.98,1.21081704]
[1740978515899,0.30017289,612.73,611.98,1.21081704]
[1740978516094,0.32641336,612.72,611.98,1.21081704]
[1740978516301,0.30021136,612.71,611.98,1.21081704]
[1740978516903,1.154,612.7,611.98,1.21081704]
[1740978517103,0.30021136,612.69,611.98,1.21081704]
[1740978517698,1.154,612.7,611.98,1.21081704]
[1740978517903,1.154,612.7,611.53,1.45251921]
[1740978517904,0.30025526,612.69,611.73,1.21081704]
[1740978518297,0.32643468,612.68,611.73,1.21081704]
[1740978519404,0.3002484,612.67,611.73,1.21081704]
[1740978519703,0.32643468,612.68,611.73,1.21081704]
[1740978520005,1.293,612.66,611.73,1.21081704]
[1740978520404,0.32645066,612.65,611.73,1.21081704]
[1740978520606,2.03217972,612.65,611.73,1.21081704]
[1740978520903,2.03217972,612.65,611.16,2.47130005]
[1740978520904,2.03217972,612.65,611.62,1.21081704]
[1740978523203,2.03217972,612.65,611.52,1.21081704]
[1740978523404,0.32645066,612.65,611.53,0.26444584]
[1740978525807,0.32645066,612.65,611.5,0.26444584]
[1740978526303,0.32645066,612.65,611.51,0.32705924]
[1740978526607,0.32645066,612.65,611.52,0.26444584]
[1740978526807,0.32645066,612.65,611.53,0.32704855]
[1740978527009,0.32645066,612.65,611.54,0.26444584]
[1740978527309,0.32645066,612.65,611.53,0.32704855]
[1740978527603,0.32645066,612.65,611.54,0.26437376]
[1740978527803,0.32645066,612.65,611.55,0.32703785]
[1740978528004,0.32645066,612.65,611.56,0.26437376]
[1740978528208,0.32645066,612.65,611.65,1.21081704]
[1740978528403,0.32645066,612.65,611.66,0.5913528]
[1740978528610,0.32645066,612.65,611.67,0.59134745]
[1740978528902,0.32645066,612.65,611.68,0.5913421]
[1740978529105,0.32645066,612.65,611.69,0.26431053]
[1740978530908,1.221,612.64,611.69,0.26431053]
[1740978531910,0.608,612.63,611.69,0.26431053]
[1740978532302,0.608,612.63,611.7,0.26427614]
[1740978532504,0.608,612.63,611.71,0.26427614]
[1740978532708,0.608,612.63,611.69,0.26427614]
[1740978532909,0.608,612.63,611.7,0.26427614]
[1740978533203,0.608,612.63,611.71,0.26427614]
[1740978533407,0.608,612.63,611.72,0.26427614]
[1740978533608,0.608,612.63,611.69,0.26427614]
[1740978533804,0.608,612.63,611.68,0.32696834]
[1740978534008,0.608,612.63,611.69,0.26423475]
[1740978534908,0.608,612.63,611.71,1.21081704]
[1740978535109,0.608,612.63,611.72,0.26423475]
[1740978535510,0.608,612.63,611.73,0.26423027]
[1740978535711,0.608,612.63,611.74,0.26423027]
[1740978535905,0.608,612.63,611.75,0.26423027]
[1740978536109,1.378,612.62,611.76,0.26423027]
[1740978536309,1.378,612.62,611.77,0.26423027]
[1740978536509,1.378,612.62,611.72,0.26423027]
[1740978536711,1.378,612.62,611.73,0.26427716]
[1740978536911,1.378,612.62,611.74,0.26427716]
[1740978537108,1.378,612.62,611.75,0.26427716]
[1740978537310,1.378,612.62,611.76,0.26427716]
[1740978537510,1.378,612.62,611.72,0.26427716]
[1740978537713,1.378,612.62,611.73,0.26427716]
[1740978537909,1.378,612.62,611.7,0.26427716]
[1740978537910,0.909,612.61,611.7,0.26427716]
[1740978538113,0.909,612.61,611.71,0.26427716]
[1740978538414,0.909,612.61,611.72,0.26427716]
[1740978538614,0.909,612.61,611.7,0.26427716]
[1740978538812,0.909,612.61,611.71,0.26423684]
[1740978539010,0.909,612.61,611.72,0.26423684]
[1740978539213,0.909,612.61,611.73,0.26423684]
[1740978539415,0.909,612.61,611.74,0.26423684]
[1740978539612,0.909,612.61,611.7,0.26423684]
[1740978539914,0.909,612.61,611.79,1.21081704]
[1740978540111,0.909,612.61,611.8,0.26423684]
[1740978540315,0.909,612.61,611.79,1.21081704]
[1740978540512,0.909,612.61,611.8,0.26415864]
[1740978541516,0.909,612.61,611.81,0.26416701]
[1740978541717,0.909,612.61,611.82,0.26416701]
[1740978541918,0.909,612.61,611.83,0.26416701]
[1740978542420,0.909,612.61,611.84,0.26416701]
[1740978542614,0.909,612.61,611.82,0.26416701]
[1740978542813,0.909,612.61,611.83,0.26416701]
[1740978543018,0.909,612.61,611.82,0.26416701]
[1740978543216,0.909,612.61,611.83,0.26416701]
[1740978543422,0.909,612.61,611.81,1.21081704]
[1740978543423,0.909,612.61,611.82,0.26416701]
[1740978543720,0.909,612.61,611.83,0.26416701]
[1740978543912,0.909,612.61,611.82,0.26416701]
[1740978544115,0.909,612.61,611.83,0.26416701]
[1740978544315,0.909,612.61,611.82,0.26416701]
[1740978544519,0.909,612.61,611.83,0.26416701]
[1740978544818,0.909,612.61,611.84,0.26416701]
[1740978545016,0.837,612.6,611.79,0.26416701]
[1740978545318,0.837,612.6,611.8,0.26416701]
[1740978545519,0.837,612.6,611.81,0.26416701]
[1740978545719,0.837,612.6,611.82,0.26416701]
[1740978545912,0.837,612.6,611.83,0.26416701]
[1740978546118,0.608,612.59,611.84,0.26416701]
[1740978546421,0.608,612.59,611.85,0.26416701]
[1740978546619,0.608,612.59,611.86,0.26416701]
[1740978546820,0.608,612.59,611.87,0.26416701]
[1740978547022,0.608,612.59,611.84,1.21081704]
[1740978547222,0.608,612.59,611.85,0.26416701]
[1740978548125,0.608,612.59,611.86,0.26417251]
[1740978548324,0.608,612.59,611.87,0.26417251]
[1740978548519,0.608,612.59,611.88,0.26417251]
[1740978548722,0.608,612.59,611.85,0.26417251]
[1740978548922,1.368,612.58,611.86,0.26417251]
[1740978549121,1.368,612.58,611.87,0.26417251]
[1740978549326,1.368,612.58,611.93,1.21081704]
[1740978549519,1.368,612.58,611.94,0.26417251]
[1740978551925,2.262,612.58,611.93,0.26417251]
[1740978552123,2.262,612.58,611.94,0.26417251]
[1740978552320,2.262,612.58,611.95,0.26417251]
[1740978552523,2.262,612.58,611.93,0.26417251]
[1740978552728,2.262,612.58,611.94,0.26425139]
[1740978552930,2.262,612.58,611.93,0.26425139]
[1740978554331,3.278,612.58,611.94,0.26425139]
[1740978554528,3.278,612.58,611.92,0.26425139]
[1740978557537,3.278,612.58,611.96,1.21081704]
[1740978557939,3.278,612.58,611.97,0.26408567]
[1740978559239,4.384,612.58,611.97,0.26408567]
[1740978559538,4.384,612.58,611.98,0.26407489]
[1740978559734,4.384,612.58,611.97,0.26407489]
[1740978559936,4.384,612.58,611.96,1.21081704]
[1740978560739,4.384,612.58,612.06,1.21081704]
[1740978563135,3.49,612.58,612.06,1.21081704]
[1740978563733,3.49,612.58,612.11,1.21081704]
[1740978563938,2.122,612.58,612.11,1.21081704]
[1740978566244,2.122,612.58,612.07,1.21081704]
[1740978568945,2.122,612.58,612.11,1.21081704]
[1740978571343,2.122,612.58,612.01,1.21081704]
[1740978574046,3.078,612.58,611.97,1.21081704]
[1740978576146,3.078,612.58,611.98,1.21081704]
[1740978578248,3.078,612.58,611.97,1.21081704]
[1740978580446,3.078,612.58,612.05,1.21081704]
[1740978582150,4.434,612.58,612.05,1.21081704]
[1740978582545,4.434,612.58,612.06,0.26404238]
[1740978582747,4.434,612.58,612.09,1.21081704]
[1740978583353,3.418,612.58,612.09,1.21081704]
[1740978584650,3.418,612.58,612.15,1.21081704]
[1740978585446,2.312,612.58,612.15,1.21081704]
[1740978586251,1.356,612.58,612.15,1.21081704]
[1740978586950,1.356,612.58,612.11,1.21081704]
[1740978589859,1.356,612.58,612.1,1.21081704]
[1740978592163,1.356,612.58,612.02,1.21081704]
[1740978594263,2.433,612.58,612.02,1.21081704]
[1740978594466,2.433,612.58,611.83,1.21058957]
[1740978594467,2.433,612.58,612.03,1.21081704]
[1740978597170,2.433,612.58,611.73,2.20461777]
[1740978597171,2.433,612.58,612.02,1.21081704]
[1740978598669,2.433,612.58,612.05,1.21081704]
[1740978603570,3.041,612.58,612.05,1.21081704]
[1740978604369,3.041,612.58,612.02,1.21081704]
[1740978604572,3.94,612.58,612.02,1.21081704]
[1740978606670,3.94,612.58,612.01,1.21081704]
[1740978610784,5.237,612.58,612.01,1.21081704]
[1740978611678,6.167,612.58,612.01,1.21081704]
[1740978613283,6.167,612.58,611.73,0.99418509]
[1740978613284,6.167,612.58,612.07,1.21081704]
[1740978614681,5.559,612.58,612.07,1.21081704]
[1740978615789,5.559,612.58,612.06,1.21081704]
[1740978617590,4.66,612.58,612.06,1.21081704]
[1740978618693,4.66,612.58,612.05,1.21081704]
[1740978620696,5.827,612.58,612.05,1.21081704]
[1740978620993,5.827,612.58,611.83,1.21081704]
[1740978623294,5.827,612.58,611.81,1.21081704]
[1740978625598,5.827,612.58,611.79,1.21081704]
[1740978627597,5.827,612.58,611.72,0.32694696]
[1740978630098,6.755,612.58,611.72,0.32694696]
[1740978636203,7.363,612.58,611.72,0.32694696]
[1740978636806,7.363,612.58,611.73,1.21081704]
[1740978639607,7.363,612.58,611.72,1.537764]
[1740978643911,7.363,612.58,611.72,1.21081704]
[1740978644210,7.363,612.58,611.7,1.21081704]
[1740978646312,7.363,612.58,611.53,1.21081704]
[1740978648609,7.363,612.58,611.54,1.21081704]
[1740978649429,0.32649329,612.57,611.54,1.21081704]
[1740978650916,1.70249329,612.57,611.54,1.21081704]
[1740978651416,1.70249329,612.57,610.83,2.47130005]
[1740978651417,0.30029584,612.56,611.55,1.21081704]
[1740978651716,0.32650395,612.55,611.55,1.21081704]
[1740978651915,0.30029584,612.54,611.55,1.21081704]
[1740978652111,0.62680512,612.54,611.55,1.21081704]
[1740978652317,0.30029584,612.53,611.55,1.21081704]
[1740978652716,0.30029584,612.53,611.56,0.26450001]
[1740978652916,4.799,612.52,611.56,0.26450001]
[1740978653116,0.30029584,612.51,611.56,0.26450001]
[1740978654416,4.799,612.52,611.57,0.26449008]
[1740978654617,0.30028993,612.51,611.61,1.21081704]
[1740978655014,4.799,612.52,611.62,0.2644604]
[1740978655211,1.635,612.5,611.62,0.2644604]
[1740978655912,1.635,612.5,611.61,1.21081704]
[1740978656111,1.635,612.5,611.62,0.26443856]
[1740978656718,1.635,612.5,611.69,1.21081704]
[1740978657618,1.635,612.5,611.7,0.2643955]
[1740978659019,1.635,612.5,611.75,1.21081704]
[1740978662632,1.635,612.5,611.79,1.21081704]
[1740978664634,1.635,612.5,611.78,1.21081704]
[1740978667241,1.588,612.49,611.78,1.21081704]
[1740978667541,1.588,612.49,611.77,1.21081704]
[1740978669037,1.588,612.49,611.78,0.26415226]
[1740978670640,1.588,612.49,611.79,1.21081704]
[1740978670842,1.588,612.49,611.8,0.26415226]
[1740978671442,1.588,612.49,611.79,1.21081704]
[1740978671842,1.588,612.49,611.8,0.26409296]
[1740978673143,2.737,612.48,611.8,0.26409296]
[1740978673345,2.737,612.48,611.81,0.2639913]
[1740978676349,2.737,612.48,611.93,1.21081704]
[1740978676545,2.737,612.48,611.94,0.2639913]
[1740978679351,2.737,612.48,611.89,1.21081704]
[1740978679552,2.737,612.48,611.9,0.59055679]
[1740978679751,2.737,612.48,611.91,0.59055145]
[1740978679951,2.737,612.48,611.89,1.21081704]
[1740978679952,2.737,612.48,611.92,0.5905461]
[1740978680250,2.737,612.48,611.93,0.59054076]
[1740978680453,2.737,612.48,611.94,0.59053542]
[1740978680752,2.737,612.48,611.95,0.59053008]
[1740978680951,2.737,612.48,611.96,0.59052474]
[1740978681151,2.737,612.48,611.97,0.5905194]
[1740978681345,2.737,612.48,611.98,0.59051406]
[1740978681551,2.737,612.48,611.99,0.59050872]
[1740978681753,2.737,612.48,612.0,0.263706]
[1740978684149,1.402,612.48,612.0,0.263706]
[1740978687149,2.649,612.49,612.0,0.263706]
[1740978689851,2.649,612.49,612.01,0.32679204]
[1740978696263,1.518,612.49,612.01,0.32679204]
[1740978699863,1.518,612.49,612.02,0.26345222]
[1740978700062,1.518,612.49,612.03,0.32678136]
[1740978700259,1.518,612.49,612.04,0.26345222]
[1740978700463,1.518,612.49,612.04,0.59022824]
[1740978700660,1.518,612.49,612.05,0.26345222]
[1740978701960,1.518,612.49,612.04,0.32677602]
[1740978702160,1.518,612.49,612.05,0.26340462]
[1740978703268,1.518,612.49,612.09,1.21081704]
[1740978703567,1.518,612.49,612.1,0.26340462]
[1740978705465,1.41,612.53,612.1,0.26340462]
[1740978706265,1.41,612.53,612.2,1.21081704]
[1740978706464,1.41,612.53,612.21,0.26340462]
[1740978708572,1.41,612.53,612.33,1.21081704]
[1740978710472,1.287,612.54,612.33,1.21081704]
[1740978710674,1.287,612.54,612.04,0.32677602]
[1740978710675,1.287,612.54,612.44,1.21081704]
[1740978713280,1.287,612.54,612.48,1.21081704]
[1740978716085,1.287,612.54,612.21,1.21043268]
[1740978716086,1.287,612.54,612.49,1.21081704]
[1740978718288,1.287,612.54,612.48,1.21081704]
[1740978720590,1.287,612.54,612.45,1.21081704]
[1740978724306,1.287,612.54,612.25,1.21081704]
[1740978725497,1.39,612.68,612.25,1.21081704]
[1740978726500,1.39,612.68,612.17,1.21081704]
[1740978729398,1.39,612.68,612.07,1.21081704]
[1740978731706,2.407,612.67,612.07,1.21081704]
[1740978731905,3.337,612.67,612.07,1.21081704]
[1740978732507,3.337,612.67,612.01,1.21081704]
[1740978734404,3.337,612.67,611.91,1.21081704]
[1740978734608,3.337,612.67,612.05,0.26375803]
[1740978737310,0.608,612.66,612.05,0.26375803]
[1740978738211,0.608,612.66,612.0,1.21081704]
[1740978738412,0.608,612.66,612.05,0.2636541]
[1740978739908,1.102,612.65,612.05,0.2636541]
[1740978741411,1.102,612.65,612.06,1.21081704]
[1740978741613,1.102,612.65,612.07,0.2636541]
[1740978743316,1.102,612.65,612.06,1.21081704]
[1740978743516,1.102,612.65,612.07,0.26376173]
[1740978743917,1.102,612.65,612.08,0.26376173]
[1740978744215,1.102,612.65,612.09,0.26376173]
[1740978744418,1.102,612.65,612.1,0.26376173]
[1740978744618,1.102,612.65,612.11,0.26376173]
[1740978744818,1.102,612.65,612.12,0.26376173]
[1740978745014,1.102,612.65,612.05,0.26376173]
[1740978745320,1.102,612.65,612.06,0.26376173]
[1740978745520,1.102,612.65,612.07,0.26376173]
[1740978745712,1.102,612.65,612.08,0.26376173]
[1740978745916,1.102,612.65,612.09,0.26376173]
[1740978746114,1.102,612.65,612.1,0.26376173]
[1740978746318,1.102,612.65,612.11,0.26376173]
[1740978746514,1.102,612.65,612.01,1.21081704]
[1740978746515,1.102,612.65,612.12,0.26376173]
[1740978746717,1.102,612.65,612.1,1.21081704]
[1740978746916,1.102,612.65,612.11,0.2637882]
[1740978747723,1.102,612.65,612.1,1.21081704]
[1740978749124,1.102,612.65,612.07,1.21081704]
[1740978749420,1.102,612.65,612.08,0.26382603]
[1740978749822,1.102,612.65,612.07,1.21081704]
[1740978750021,1.178,612.64,612.08,0.26382387]
[1740978751123,1.178,612.64,612.09,1.21081704]
[1740978752824,1.078,612.63,612.09,1.21081704]
[1740978753026,2.196,612.63,612.09,1.21081704]
[1740978753623,2.196,612.63,612.14,1.21081704]
[1740978755424,1.153,612.62,612.14,1.21081704]
[1740978755821,1.153,612.62,611.93,1.21058957]
[1740978755822,1.153,612.62,612.18,1.21081704]
[1740978758321,1.153,612.62,611.97,1.21058957]
[1740978758322,1.153,612.62,612.08,1.21081704]
[1740978761426,0.608,612.61,612.08,1.21081704]
[1740978761626,0.608,612.61,612.07,1.21081704]
[1740978763125,1.087,612.6,612.07,1.21081704]
[1740978764229,2.452,612.6,612.05,1.21081704]
[1740978765729,2.452,612.6,612.06,0.2639577]
[1740978766231,2.452,612.6,612.05,1.21081704]
[1740978766428,2.452,612.6,612.06,0.26397431]
[1740978767130,0.899,612.59,612.06,0.26397431]
[1740978767726,0.873,612.58,612.06,0.26397431]
[1740978767926,0.873,612.58,612.09,1.21081704]
[1740978768632,0.873,612.58,612.1,0.2639542]
[1740978770937,0.873,612.58,612.18,1.21081704]
[1740978773936,0.873,612.58,612.2,1.21081704]
[1740978776139,0.873,612.58,612.21,0.26378858]
[1740978776442,0.873,612.58,612.23,1.21081704]
[1740978779249,0.873,612.58,612.24,0.26371428]
[1740978779647,0.873,612.58,612.28,1.21081704]
[1740978781747,0.899,612.59,612.28,1.21081704]
[1740978782048,0.899,612.59,612.25,1.21081704]
[1740978784844,0.899,612.59,612.22,1.21081704]
[1740978786250,1.087,612.6,612.22,1.21081704]
[1740978786450,1.087,612.6,612.23,0.26364289]
[1740978788451,1.087,612.6,612.22,1.21081704]
[1740978791150,1.279,612.72,612.22,1.21081704]
[1740978792153,1.279,612.72,612.2,1.21081704]
[1740978794451,1.279,612.72,611.66,2.47130005]
[1740978794452,1.279,612.72,611.74,1.21081704]
[1740978797048,1.279,612.72,611.75,1.21081704]
[1740978798654,1.279,612.72,611.15,1.21043268]
[1740978798655,1.279,612.72,611.8,1.21081704]
[1740978800577,1.279,612.72,612.05,0.26365242]
[1740978801257,1.279,612.72,612.06,0.26366811]
[1740978801453,1.279,612.72,612.07,0.26366811]
[1740978801658,1.279,612.72,612.05,0.26366811]
[1740978801858,1.279,612.72,612.06,0.26366811]
[1740978802160,0.954,612.71,612.07,0.26366811]
[1740978802351,0.954,612.71,612.05,0.26366811]
[1740978802551,0.954,612.71,612.06,0.26366811]
[1740978802755,0.954,612.71,611.9,1.21081704]
[1740978802952,0.954,612.71,612.05,0.2637735]
[1740978803456,0.954,612.71,612.2,1.21081704]
[1740978806262,0.954,612.71,612.19,1.21081704]
[1740978808462,0.954,612.71,611.28,2.47130005]
[1740978808463,0.954,612.71,612.1,1.21081704]
[1740978810665,0.954,612.71,611.99,1.21081704]
[1740978811568,1.272,612.7,611.99,1.21081704]
[1740978813267,1.272,612.7,611.93,1.21081704]
[1740978813468,1.272,612.7,611.94,0.26389371]